[Event "4th Memorial Warakomska-B 2020"]
[Site "Suwalki"]
[Date "2020.08.08"]
[Round "4.12"]
[White "Milewski, Karol"]
[Black "Harasimczuk, Jakub"]
[Result "1-0"]
[ECO "D00"]
[WhiteElo "1795"]
[BlackElo "1400"]
[Annotator "NA"]
[PlyCount "61"]
[EventDate "2020.08.06"]
[EventType "swiss"]
[EventCountry "POL"]
[SourceTitle "playchess.com"]
[Source "ChessBase"]
[SourceQuality "1"]
[TimeControl "40/5400+30:1800+30"]

1. d4 {[%emt 0:00:00]} d5 {[%emt 0:00:00]} 2. Bf4 {[%emt 0:00:25]} c5 {[%emt 0:02:53]} 3. e3 {[%emt 0:03:11]} Nc6 {[%emt 0:06:06]} 4. Nf3 {[%emt 0:09:16]} Bg4 5. c3 {[%emt 0:01:20]} Qb6 {[%emt 0:12:47]} 6. Qb3 {[%emt 0:02:36]} Bxf3 7. gxf3 e6 {[%emt 0:10:20]} 8. Nd2 {[%emt 0:07:54]} c4 {[%emt 0:04:31]} 9. Qc2 {[%emt 0:00:38]} Nf6 {[%emt 0:01:31]} 10. Bg2 {[%emt 0:03:37]} Nh5 {[%emt 0:04:57]} 11. Bg3 {[%emt 0:00:40]} Be7 {[%emt 0:02:48]} 12. e4 {[%emt 0:04:43]} Rd8 {[%emt 0:07:51]} 13. O-O {[%emt 0:03:48]} g6 {[%emt 0:05:55]} 14. f4 {[%emt 0:03:27]} g5 {[%emt 0:08:14]} 15. fxg5 {[%emt 0:14:37]} Bxg5 {[%emt 0:00:27]} 16. f4 {[%emt 0:01:02]} Nxg3 {[%emt 0:05:22]} 17. hxg3 {[%emt 0:01:35]} Bf6 {[%emt 0:01:21]} 18. e5 {[%emt 0:04:03]} Be7 {[%emt 0:03:19]} 19. Kh2 {[%emt 0:04:08]} Kd7 {[%emt 0:05:19]} 20. Bh3 {[%emt 0:06:38]} Rdg8 {[%emt 0:06:11]} 21. f5 {[%emt 0:02:42]} Nd8 {[%emt 0:02:14]} 22. Rab1 {[%emt 0:01:32]} h5 {[%emt 0:01:24]} 23. b3 {[%emt 0:01:21]} h4 {[%emt 0:04:36]} 24. g4 {[%emt 0:01:00]} Qc7 {[%emt 0:01:12]} 25. bxc4 {[%emt 0:03:24]} f6 {[%emt 0:01:35]} 26. Nf3 {[%emt 0:10:04]} fxe5 {[%emt 0:00:41]} 27. Nxe5+ {[%emt 0:00:35]} Kc8 {[%emt 0:00:17]} 28. cxd5 {[%emt 0:01:16]} exd5 {[%emt 0:01:19]} 29. f6 {[%emt 0:01:42]} Bd6 {[%emt 0:00:28]} 30. Kh1 {[%emt 0:02:00]} Bxe5 {[%emt 0:00:28]} 31. Qf5+ {[%emt 0:00:24]} 1-0

[Event "4th Memorial Warakomska-B 2020"]
[Site "Suwalki"]
[Date "2020.08.08"]
[Round "4.13"]
[White "Bancarewicz, Aleks"]
[Black "Jasiulewicz, Dawid"]
[Result "1/2-1/2"]
[ECO "B94"]
[WhiteElo "1781"]
[BlackElo "1374"]
[Annotator "NA"]
[PlyCount "112"]
[EventDate "2020.08.06"]
[EventType "swiss"]
[EventCountry "POL"]
[SourceTitle "playchess.com"]
[Source "ChessBase"]
[SourceQuality "1"]
[TimeControl "40/5400+30:1800+30"]

1. e4 {[%emt 0:00:00]} c5 {[%emt 0:00:00]} 2. Nf3 {[%emt 0:00:00]} d6 {[%emt 0:00:14]} 3. d4 {[%emt 0:00:00]} cxd4 {[%emt 0:00:13]} 4. Nxd4 {[%emt 0:00:00]} Nf6 {[%emt 0:00:07]} 5. Nc3 {[%emt 0:00:00]} a6 {[%emt 0:00:07]} 6. Bg5 {[%emt 0:02:24]} e5 {[%emt 0:04:02]} 7. Nb3 {[%emt 0:01:37]} Be7 {[%emt 0:01:00]} 8. Bxf6 {[%emt 0:03:06]} Bxf6 {[%emt 0:00:13]} 9. Bc4 {[%emt 0:00:24]} Be6 {[%emt 0:03:10]} 10. Bd5 {[%emt 0:05:45]} Nc6 {[%emt 0:02:50]} 11. Qf3 {[%emt 0:11:58]} Rc8 {[%emt 0:08:51]} 12. O-O-O {[%emt 0:07:11]} O-O {[%emt 0:01:23]} 13. Kb1 {[%emt 0:03:27]} Qc7 {[%emt 0:07:03]} 14. h4 {[%emt 0:09:39]} Nb4 {[%emt 0:06:03]} 15. Qe2 {[%emt 0:04:32]} Nxd5 {[%emt 0:03:45]} 16. Nxd5 {[%emt 0:00:52]} Bxd5 {[%emt 0:00:18]} 17. Rxd5 {[%emt 0:01:39]} Be7 {[%emt 0:01:25]} 18. Qd3 {[%emt 0:15:30]} Qc4 {[%emt 0:10:43]} 19. Nd2 {[%emt 0:00:13]} Qxd3 {[%emt 0:00:46]} 20. Rxd3 {[%emt 0:00:07]} f5 {[%emt 0:00:53]} 21. g3 {[%emt 0:04:32]} g6 {[%emt 0:05:49]} 22. b3 {[%emt 0:04:34]} Kf7 {[%emt 0:02:45]} 23. c4 {[%emt 0:00:49]} Ke6 {[%emt 0:02:24]} 24. f3 {[%emt 0:01:33]} h6 {[%emt 0:01:47]} 25. h5 {[%emt 0:03:34]} g5 {[%emt 0:05:34]} 26. exf5+ {[%emt 0:00:13]} Rxf5 {[%emt 0:01:59]} 27. g4 {[%emt 0:00:23]} Rf4 {[%emt 0:01:35]} 28. Ne4 {[%emt 0:02:07]} Rcf8 {[%emt 0:00:43]} 29. Rh3 {[%emt 0:02:18]} Rd8 {[%emt 0:02:21]} 30. Nc3 {[%emt 0:01:28]} Bf8 {[%emt 0:02:25]} 31. Rh1 {[%emt 0:03:25]} Be7 {[%emt 0:01:55]} 32. Nd5 {[%emt 0:00:19]} Rf7 {[%emt 0:00:19]} 33. Re1 {[%emt 0:02:16]} Bf8 {[%emt 0:06:42]} 34. a4 {[%emt 0:01:24]} Rc8 {[%emt 0:01:16]} 35. Re4 {[%emt 0:00:42]} b5 {[%emt 0:08:23]} 36. Nb6 {[%emt 0:03:34]} Rc6 {[%emt 0:03:27]} 37. a5 {[%emt 0:00:52]} Rc5 {[%emt 0:02:15]} 38. b4 {[%emt 0:01:22]} bxc4 {[%emt 0:01:29]} 39. Nxc4 {[%emt 0:03:13]} Rb5 {[%emt 0:01:31]} 40. Rb3 {[%emt 0:00:00]} Rfb7 {[%emt 0:00:00]} 41. Kc2 {[%emt 0:14:17]} Rxb4 {[%emt 0:01:54]} 42. Rxb4 {[%emt 0:00:03]} Rxb4 {[%emt 0:00:06]} 43. Ne3 {[%emt 0:00:06]} d5 {[%emt 0:02:28]} 44. Rxb4 {[%emt 0:02:24]} Bxb4 {[%emt 0:00:06]} 45. Nf5 {[%emt 0:00:05]} e4 {[%emt 0:08:26]} 46. fxe4 {[%emt 0:02:23]} dxe4 {[%emt 0:00:09]} 47. Nxh6 {[%emt 0:00:34]} Bxa5 {[%emt 0:02:14]} 48. Nf5 {[%emt 0:01:52]} Bd8 {[%emt 0:00:37]} 49. h6 {[%emt 0:08:36]} Bf6 {[%emt 0:00:38]} 50. Kd2 {[%emt 0:00:27]} a5 {[%emt 0:00:37]} 51. Ng3 {[%emt 0:02:57]} Kd5 {[%emt 0:01:52]} 52. Ne2 {[%emt 0:02:16]} Be5 {[%emt 0:10:15]} 53. h7 {[%emt 0:01:07]} Ke6 {[%emt 0:06:08]} 54. Ke3 {[%emt 0:00:13]} Kd5 {[%emt 0:01:16]} 55. Kd2 {[%emt 0:00:04]} Bf6 {[%emt 0:01:59]} 56. Nc3+ {[%emt 0:00:28]} Kd4 {[%emt 0:00:43]} 1/2-1/2

[Event "4th Memorial Warakomska-B 2020"]
[Site "Suwalki"]
[Date "2020.08.08"]
[Round "4.14"]
[White "Kotarski, Bartosz"]
[Black "Wydornik, Robert"]
[Result "1-0"]
[ECO "B72"]
[WhiteElo "1742"]
[BlackElo "1361"]
[Annotator "NA"]
[PlyCount "55"]
[EventDate "2020.08.06"]
[EventType "swiss"]
[EventCountry "POL"]
[SourceTitle "playchess.com"]
[Source "ChessBase"]
[SourceQuality "1"]
[TimeControl "40/5400+30:1800+30"]

1. e4 {[%emt 0:00:00]} c5 {[%emt 0:01:35]} 2. Nf3 {[%emt 0:00:00]} d6 {[%emt 0:00:06]} 3. d4 {[%emt 0:00:00]} cxd4 {[%emt 0:00:04]} 4. Nxd4 {[%emt 0:00:00]} Nf6 {[%emt 0:00:12]} 5. Nc3 {[%emt 0:00:00]} g6 {[%emt 0:00:09]} 6. Be2 {[%emt 0:00:33]} Bg7 {[%emt 0:00:20]} 7. Be3 {[%emt 0:00:23]} O-O {[%emt 0:00:25]} 8. f3 {[%emt 0:00:18]} Nc6 {[%emt 0:00:34]} 9. Qd2 {[%emt 0:00:40]} Bd7 {[%emt 0:01:08]} 10. O-O-O {[%emt 0:00:16]} Rc8 {[%emt 0:02:39]} 11. g4 {[%emt 0:05:57]} Ne5 {[%emt 0:00:59]} 12. h4 {[%emt 0:07:03]} Nc4 {[%emt 0:02:08]} 13. Bxc4 {[%emt 0:00:17]} Rxc4 {[%emt 0:00:02]} 14. h5 {[%emt 0:02:31]} Qa5 {[%emt 0:02:25]} 15. hxg6 {[%emt 0:04:05]} fxg6 {[%emt 0:00:41]} 16. Nb3 {[%emt 0:01:37]} Qc7 {[%emt 0:01:18]} 17. e5 {[%emt 0:02:23]} Ne8 {[%emt 0:07:07]} 18. Nd5 {[%emt 0:08:14]} Qd8 {[%emt 0:03:12]} 19. Bg5 {[%emt 0:01:04]} Rf7 {[%emt 0:01:54]} 20. Nxe7+ {[%emt 0:01:28]} Rxe7 {[%emt 0:00:42]} 21. exd6 {[%emt 0:00:10]} Nxd6 {[%emt 0:03:05]} 22. Qxd6 {[%emt 0:00:25]} Rxc2+ {[%emt 0:03:24]} 23. Kxc2 {[%emt 0:00:50]} Re2+ {[%emt 0:00:50]} 24. Rd2 {[%emt 0:01:42]} Bf5+ {[%emt 0:02:26]} 25. Kd1 {[%emt 0:00:34]} Qxd6 {[%emt 0:14:27]} 26. Rxd6 {[%emt 0:00:19]} Rxb2 {[%emt 0:00:20]} 27. gxf5 {[%emt 0:00:13]} Rb1+ {[%emt 0:00:19]} 28. Bc1 {[%emt 0:00:20]} 1-0

[Event "4th Memorial Warakomska-B 2020"]
[Site "Suwalki"]
[Date "2020.08.09"]
[Round "5.1"]
[White "Obolonin, Filipp"]
[Black "Wolagiewicz, Kinga"]
[Result "0-1"]
[ECO "D02"]
[WhiteElo "1922"]
[BlackElo "1719"]
[Annotator "ChessBase"]
[PlyCount "92"]
[EventDate "2020.08.06"]
[EventType "swiss"]
[EventCountry "POL"]
[SourceTitle "playchess.com"]
[Source "ChessBase"]
[SourceQuality "1"]
[TimeControl "40/5400+30:1800+30"]

1. d4 {[%emt 0:01:57]} d5 {[%emt 0:00:00]} 2. Nf3 {[%emt 0:00:05]} Nf6 {[%emt 0:00:00]} 3. g3 {[%emt 0:00:06]} c6 {[%emt 0:00:11]} 4. Bg2 {[%emt 0:00:07]} Bf5 {[%emt 0:00:38]} 5. O-O {[%emt 0:00:08]} h6 {[%emt 0:00:24]} 6. c4 {[%emt 0:00:07]} e6 {[%emt 0:00:19]} 7. Nc3 {[%emt 0:00:06]} Nbd7 {[%emt 0:00:25]} 8. Nd2 {[%emt 0:01:02]} Be7 {[%emt 0:01:09]} 9. e4 {[%emt 0:02:07]} dxe4 {[%emt 0:01:31]} 10. Ndxe4 {[%emt 0:00:08]} Nxe4 {[%emt 0:00:53]} 11. Nxe4 {[%emt 0:00:08]} Nf6 {[%emt 0:00:42]} 12. Nxf6+ {[%emt 0:00:24]} Bxf6 {[%emt 0:00:10]} 13. d5 {[%emt 0:00:03]} cxd5 {[%emt 0:06:17]} 14. cxd5 {[%emt 0:00:31]} O-O {[%emt 0:00:41]} 15. Qb3 {[%emt 0:01:13]} exd5 {[%emt 0:22:27]} 16. Bxd5 {[%emt 0:00:14]} Qc7 {[%emt 0:00:47]} 17. Bf4 {[%emt 0:00:19]} Be5 {[%emt 0:01:00]} 18. Rac1 {[%emt 0:00:32]} Qd6 {[%emt 0:01:08]} 19. Be3 {[%emt 0:04:04]} Qf6 {[%emt 0:03:50]} 20. Bxb7 {[%emt 0:00:30]} Rad8 {[%emt 0:03:10]} 21. Rc6 {[%emt 0:01:57]} Be6 {[%emt 0:02:43]} 22. Qb4 {[%emt 0:01:33]} Rb8 {[%emt 0:11:54]} 23. Bxa7 {[%emt 0:00:58]} Rxb7 {[%emt 0:00:55]} 24. Qxb7 {[%emt 0:00:07]} Qf3 {[%emt 0:00:23]} 25. Rxe6 {[%emt 0:08:26]} Qxb7 {[%emt 0:00:10]} 26. Rxe5 {[%emt 0:00:05]} Qxa7 {[%emt 0:00:13]} 27. a3 {[%emt 0:01:35]} Rb8 {[%emt 0:00:53]} 28. Re2 {[%emt 0:03:07]} Rb3 {[%emt 0:02:51]} 29. Rd1 {[%emt 0:00:25]} Qb7 {[%emt 0:04:53]} 30. Rdd2 {[%emt 0:00:50]} Qf3 {[%emt 0:02:25]} 31. Rd8+ {[%emt 0:06:11]} Kh7 {[%emt 0:00:18]} 32. Rde8 {[%emt 0:00:05]} Rd3 {[%emt 0:03:07]} 33. R8e3 {[%emt 0:00:47]} Rd1+ {[%emt 0:01:24]} 34. Re1 {[%emt 0:00:10]} Qxe3 {[%emt 0:00:57]} 35. Rxd1 {[%emt 0:00:07]} Qe2 {[%emt 0:01:14]} 36. Rb1 {[%emt 0:00:10]} Qc2 {[%emt 0:00:09]} 37. Re1 {[%emt 0:00:05]} Qxb2 {[%emt 0:00:27]} 38. Re3 {[%emt 0:00:06]} Qd4 {[%emt 0:05:17]} 39. h3 {[%emt 0:05:15]} f5 {[%emt 0:03:18]} 40. Re1 {[%emt 0:00:00]} Kg6 {[%emt 0:00:00]} 41. Kg2 {[%emt 0:16:50]} Kf6 {[%emt 0:25:35]} 42. Rf1 {[%emt 0:03:55]} Qd5+ {[%emt 0:02:31]} 43. Kg1 {[%emt 0:01:41]} Qa2 {[%emt 0:01:14]} 44. Kg2 {[%emt 0:02:50]} Qxa3 {[%emt 0:00:11]} 45. Re1 {[%emt 0:04:19]} Qa8+ {[%emt 0:00:50]} 46. Kg1 {[%emt 0:00:36]} g5 {[%emt 0:01:54]} 0-1

[Event "4th Memorial Warakomska-B 2020"]
[Site "Suwalki"]
[Date "2020.08.09"]
[Round "5.2"]
[White "Kaminski, Maciej"]
[Black "Ciszewski, Krzysztof"]
[Result "1-0"]
[ECO "A45"]
[WhiteElo "1869"]
[BlackElo "1728"]
[Annotator "NA"]
[PlyCount "77"]
[EventDate "2020.08.06"]
[EventType "swiss"]
[EventCountry "POL"]
[SourceTitle "playchess.com"]
[Source "ChessBase"]
[SourceQuality "1"]
[TimeControl "40/5400+30:1800+30"]

1. d4 {[%emt 0:00:00]} Nf6 {[%emt 0:00:00]} 2. Bf4 {[%emt 0:00:00]} g6 {[%emt 0:02:19]} 3. Nc3 {[%emt 0:00:00]} d5 {[%emt 0:03:12]} 4. e3 {[%emt 0:00:04]} a6 {[%emt 0:01:44]} 5. h4 {[%emt 0:01:49]} h5 {[%emt 0:01:10]} 6. Nf3 {[%emt 0:00:45] A45: Trompowsky Attack.} Bg7 {[%emt 0:01:29]} 7. Ne5 {[%emt 0:02:14]} Nbd7 {[%emt 0:16:03]} 8. Qd2 {[%emt 0:03:47]} c6 {[%emt 0:02:54] [#]} 9. O-O-O $146 {[%emt 0:01:38]} ({Predecessor:} 9. f3 Nxe5 10. Bxe5 Bf5 11. Bd3 Bxd3 12. Qxd3 Rc8 13. O-O-O Qa5 14. Kb1 b5 15. g4 {0-1 (35) Liew,M (1708)-Ng,S (2065) Penang 2019}) 9... O-O {[%emt 0:02:28]} 10. f3 {[%emt 0:03:46]} Qa5 {[%emt 0:04:00]} 11. e4 {[%emt 0:03:09]} (11. Be2 $16) 11... dxe4 {[%emt 0:01:44]} 12. fxe4 {[%emt 0:01:30]} Nxe5 {[%emt 0:01:05]} 13. Bxe5 {[%emt 0:01:07]} b5 {[%emt 0:02:28]} 14. Bxf6 {[%emt 0:09:10]} Bxf6 {[%emt 0:00:23]} 15. e5 {[%emt 0:00:09]} Bg7 {[%emt 0:00:51]} 16. Kb1 {[%emt 0:01:14] [#]} Be6 {[%emt 0:03:51]} ({Black should play} 16... Rd8 $1 $19 17. Be2 Be6) 17. Nd5 {[%emt 0:05:51]} Qd8 {[%emt 0:03:19]} 18. Nf4 {[%emt 0:00:45]} Bf5 {[%emt 0:05:11]} 19. Be2 {[%emt 0:02:15]} a5 {[%emt 0:08:45] [#]} 20. Rhf1 {[%emt 0:03:38]} ({White should play} 20. g4 $1 $16 {[%cal Rg4f5][%mdl 512]} hxg4 (20... Bxg4 21. Bxg4) 21. h5) 20... Qd7 {[%emt 0:02:24]} 21. Bf3 {[%emt 0:06:22]} Ra7 {[%emt 0:04:47]} 22. Qe3 {[%emt 0:03:56]} e6 {[%emt 0:05:58]} 23. Bxh5 {[%emt 0:16:24]} gxh5 {[%emt 0:05:06]} 24. Nxh5 {[%emt 0:02:02]} f6 {[%emt 0:04:08]} 25. exf6 $18 {[%emt 0:02:41]} Bh8 {[%emt 0:02:47]} 26. g4 {[%emt 0:01:56]} Bg6 {[%emt 0:01:17]} 27. Nf4 {[%emt 0:03:55]} Qh7 {[%emt 0:01:24]} 28. Nxg6 {[%emt 0:01:52]} Qxg6 {[%emt 0:00:02]} 29. Qxe6+ {[%emt 0:01:53]} Raf7 {[%emt 0:00:51]} 30. Rf5 {[%emt 0:01:49]} Bxf6 {[%emt 0:02:24]} 31. Rg5 {[%emt 0:00:20]} Qxg5 {[%emt 0:00:13]} 32. hxg5 {[%emt 0:00:17]} Bxg5 {[%emt 0:00:02]} 33. Qg6+ {[%emt 0:01:06]} Rg7 {[%emt 0:00:01]} 34. Qxc6 {[%emt 0:00:16]} Bd2 {[%emt 0:00:30]} 35. Qd5+ {[%emt 0:00:21]} Kh7 {[%emt 0:00:09]} 36. Rh1+ {[%emt 0:01:29]} Kg6 {[%emt 0:00:02]} 37. Qh5+ {[%emt 0:01:26]} Kf6 {[%emt 0:00:01]} 38. Rf1+ {[%emt 0:00:19]} Ke7 {[%emt 0:00:01]} 39. Qe5+ {[%emt 0:00:17]} 1-0

[Event "4th Memorial Warakomska-B 2020"]
[Site "Suwalki"]
[Date "2020.08.09"]
[Round "5.3"]
[White "Borowik, Wojciech"]
[Black "Kitewski, Bartosz"]
[Result "1-0"]
[ECO "E12"]
[WhiteElo "1769"]
[BlackElo "1718"]
[Annotator "NA"]
[PlyCount "47"]
[EventDate "2020.08.06"]
[EventType "swiss"]
[EventCountry "POL"]
[SourceTitle "playchess.com"]
[Source "ChessBase"]
[SourceQuality "1"]
[TimeControl "40/5400+30:1800+30"]

1. d4 {[%emt 0:00:00]} Nf6 {[%emt 0:00:00]} 2. Nf3 {[%emt 0:00:00]} e6 {[%emt 0:00:08]} 3. c4 {[%emt 0:00:00]} b6 {[%emt 0:00:08]} 4. Nbd2 {[%emt 0:00:36]} Bb7 {[%emt 0:00:20]} 5. e3 {[%emt 0:00:17]} d5 {[%emt 0:01:45]} 6. Be2 {[%emt 0:01:34]} Bd6 {[%emt 0:00:24]} 7. O-O {[%emt 0:00:48]} O-O {[%emt 0:00:23]} 8. b3 {[%emt 0:01:19]} c5 {[%emt 0:01:36]} 9. cxd5 {[%emt 0:06:26]} exd5 {[%emt 0:01:10]} 10. Bb2 {[%emt 0:00:20]} Nbd7 {[%emt 0:01:51]} 11. Rc1 {[%emt 0:02:39]} Rc8 {[%emt 0:03:27]} 12. Ne5 {[%emt 0:17:14]} Re8 {[%emt 0:22:06]} 13. f4 {[%emt 0:08:07]} Ne4 {[%emt 0:03:35]} 14. Nxe4 {[%emt 0:11:58]} dxe4 {[%emt 0:03:37]} 15. Bb5 {[%emt 0:05:44]} Bxe5 {[%emt 0:01:44]} 16. dxe5 {[%emt 0:01:56]} Re7 {[%emt 0:00:48]} 17. Qg4 {[%emt 0:00:59]} a6 {[%emt 0:04:01]} 18. Bc4 {[%emt 0:04:54]} b5 {[%emt 0:01:46]} 19. e6 {[%emt 0:00:33]} fxe6 {[%emt 0:12:45]} 20. Bxe6+ {[%emt 0:00:48]} Kh8 {[%emt 0:00:16]} 21. Rcd1 {[%emt 0:00:58]} Bc6 {[%emt 0:03:57]} 22. f5 {[%emt 0:06:37]} Qe8 {[%emt 0:12:31]} 23. f6 {[%emt 0:04:41]} h5 {[%emt 0:02:02]} 24. fxg7+ {[%emt 0:00:33]} 1-0

[Event "4th Memorial Warakomska-B 2020"]
[Site "Suwalki"]
[Date "2020.08.09"]
[Round "5.4"]
[White "Milewski, Karol"]
[Black "Kiolbasa, Damian"]
[Result "0-1"]
[ECO "E61"]
[WhiteElo "1795"]
[BlackElo "1973"]
[Annotator "NA"]
[PlyCount "98"]
[EventDate "2020.08.06"]
[EventType "swiss"]
[EventCountry "POL"]
[SourceTitle "playchess.com"]
[Source "ChessBase"]
[SourceQuality "1"]
[TimeControl "40/5400+30:1800+30"]

1. d4 {[%emt 0:00:00]} Nf6 {[%emt 0:00:00]} 2. c4 {[%emt 0:00:00]} g6 {[%emt 0:00:00]} 3. Nc3 {[%emt 0:00:02]} Bg7 {[%emt 0:00:00]} 4. Nf3 {[%emt 0:00:44]} O-O {[%emt 0:00:00]} 5. Bg5 {[%emt 0:00:43]} d6 {[%emt 0:00:00]} 6. e3 {[%emt 0:00:40]} b6 {[%emt 0:00:11]} 7. Be2 {[%emt 0:02:11] E61: King's Indian: Early deviations for White, including Smyslov System.} Bb7 {[%emt 0:00:06]} 8. Qc2 {[%emt 0:00:32]} Nbd7 {[%emt 0:02:05]} 9. O-O {[%emt 0:10:15]} h6 {[%emt 0:03:12] 9...e6 is more advanced technology.} 10. Bh4 {[%emt 0:01:31]} e5 {[%emt 0:01:32]} 11. dxe5 {[%emt 0:07:32]} Nxe5 {[%emt 0:03:02]} 12. Nxe5 {[%emt 0:04:17]} dxe5 {[%emt 0:00:03]} 13. Rfd1 {[%emt 0:02:09]} Qe8 {[%emt 0:00:32] [#]} 14. Nd5 $146 {[%emt 0:04:05]} ({Predecessor:} 14. Rd2 Qc6 15. Bf3 e4 16. Be2 Rfd8 17. Rad1 Rxd2 18. Rxd2 a6 19. h3 Re8 20. b4 {1-0 (48) Eperjesi,L (2255)-Pesztericz,L (2164) Hungary 2002}) 14... g5 {[%emt 0:04:50]} 15. Bg3 {[%emt 0:11:41]} Rc8 {[%emt 0:01:06]} ({Black should play} 15... Rd8 $14) 16. e4 {[%emt 0:13:05]} c6 {[%emt 0:11:18]} 17. Ne3 {[%emt 0:03:19]} Qe6 {[%emt 0:00:55]} 18. Rd2 {[%emt 0:05:54]} Rfd8 {[%emt 0:00:36]} 19. Rad1 {[%emt 0:00:55]} Rd4 {[%emt 0:00:11]} 20. f3 {[%emt 0:08:44]} c5 {[%emt 0:10:16]} 21. Nf5 {[%emt 0:04:23]} Nh5 {[%emt 0:00:15]} 22. Bf2 {[%emt 0:01:34]} Nf4 {[%emt 0:00:01]} 23. Bf1 {[%emt 0:00:11]} Ng6 {[%emt 0:04:00]} 24. a4 {[%emt 0:08:11]} Bf8 {[%emt 0:01:06]} 25. a5 {[%emt 0:00:34]} Ne7 {[%emt 0:02:30]} 26. b4 {[%emt 0:02:30]} Nxf5 {[%emt 0:06:41]} 27. exf5 {[%emt 0:00:06]} Qf6 {[%emt 0:04:11]} 28. a6 {[%emt 0:03:20]} Bxa6 $14 {[%emt 0:01:21]} 29. b5 {[%emt 0:00:04]} Bb7 {[%emt 0:00:33]} 30. Bxd4 {[%emt 0:00:11]} exd4 {[%emt 0:00:34]} 31. Bd3 {[%emt 0:00:48]} Bd6 {[%emt 0:07:33]} 32. Be4 {[%emt 0:01:16]} Bxe4 {[%emt 0:03:24]} 33. Qxe4 {[%emt 0:00:13]} Rd8 {[%emt 0:01:10]} 34. Rd3 {[%emt 0:02:36]} h5 {[%emt 0:00:27]} 35. Ra1 {[%emt 0:01:12]} Bb8 {[%emt 0:00:15]} 36. Re1 {[%emt 0:00:49]} h4 {[%emt 0:08:25]} 37. Re2 {[%emt 0:01:32]} Kf8 {[%emt 0:07:27]} 38. Kf1 {[%emt 0:00:28]} Bxh2 {[%emt 0:00:18]} 39. Ke1 {[%emt 0:00:08]} Bf4 {[%emt 0:00:33]} 40. Kd1 {[%emt 0:00:00]} Be3 {[%emt 0:00:00]} 41. Ra2 {[%emt 0:07:01]} Re8 {[%emt 0:00:53]} 42. Qd5 {[%emt 0:04:13]} Re5 {[%emt 0:01:19]} 43. Qa8+ {[%emt 0:04:23]} Kg7 {[%emt 0:00:02]} 44. Rxa7 {[%emt 0:01:10]} Qxf5 {[%emt 0:00:07]} 45. Raa3 {[%emt 0:01:29]} h3 {[%emt 0:00:03]} 46. gxh3 {[%emt 0:02:01]} Qxh3 {[%emt 0:00:12]} 47. Kc2 {[%emt 0:01:47]} Qf1 {[%emt 0:00:34]} 48. Qb8 {[%emt 0:02:19]} Qc1+ {[%emt 0:00:16]} 49. Kb3 {[%emt 0:00:20]} Qb1+ {[%emt 0:00:06]} 0-1

[Event "4th Memorial Warakomska-B 2020"]
[Site "Suwalki"]
[Date "2020.08.09"]
[Round "5.5"]
[White "Milanowski, Jan"]
[Black "Ryszkiewicz, Adam"]
[Result "0-1"]
[ECO "A45"]
[WhiteElo "1787"]
[BlackElo "1941"]
[Annotator "NA"]
[PlyCount "78"]
[EventDate "2020.08.06"]
[EventType "swiss"]
[EventCountry "POL"]
[SourceTitle "playchess.com"]
[Source "ChessBase"]
[SourceQuality "1"]
[TimeControl "40/5400+30:1800+30"]

1. d4 {[%emt 0:00:00]} Nf6 {[%emt 0:00:00]} 2. Bf4 {[%emt 0:00:13]} d6 {[%emt 0:00:09]} 3. e3 {[%emt 0:00:20]} g6 {[%emt 0:00:12]} 4. c3 {[%emt 0:00:20]} Bg7 {[%emt 0:00:04]} 5. h3 {[%emt 0:00:34]} O-O {[%emt 0:00:06]} 6. Nf3 {[%emt 0:00:11]} Re8 {[%emt 0:00:18]} 7. Be2 {[%emt 0:00:21]} Nc6 {[%emt 0:00:46]} 8. O-O {[%emt 0:00:36]} Bf5 {[%emt 0:00:10]} 9. Nbd2 {[%emt 0:00:42]} e5 {[%emt 0:02:40]} 10. Bh2 {[%emt 0:01:33]} e4 {[%emt 0:09:14]} 11. Ne1 {[%emt 0:00:33]} h5 {[%emt 0:00:41]} 12. b4 {[%emt 0:02:30]} a5 {[%emt 0:08:52]} 13. b5 {[%emt 0:00:24]} Ne7 {[%emt 0:02:31]} 14. c4 {[%emt 0:03:35]} Qd7 {[%emt 0:06:05]} 15. Rc1 {[%emt 0:01:42]} b6 {[%emt 0:00:28]} 16. a3 {[%emt 0:05:25]} h4 {[%emt 0:05:27]} 17. Nb3 $15 {[%emt 0:03:18]} (17. Bf4 $14) 17... Rac8 {[%emt 0:01:59]} 18. c5 {[%emt 0:03:25]} Ned5 {[%emt 0:00:51]} 19. c6 {[%emt 0:05:26]} Qe7 {[%emt 0:06:27]} 20. Nd2 {[%emt 0:01:47]} Kh7 {[%emt 0:07:38]} 21. Nc4 {[%emt 0:00:44]} Bh6 {[%emt 0:00:40]} 22. Kh1 {[%emt 0:01:16]} Rg8 {[%emt 0:02:04]} 23. Rg1 {[%emt 0:02:57]} Qe6 {[%emt 0:02:56]} 24. Bf1 {[%emt 0:18:14]} g5 {[%emt 0:02:54]} 25. g4 {[%emt 0:01:20]} hxg3 {[%emt 0:00:06]} 26. Rxg3 {[%emt 0:00:05]} g4 {[%emt 0:00:56]} 27. hxg4 {[%emt 0:09:32]} Nxg4 {[%emt 0:00:45]} 28. Qe2 {[%emt 0:03:14]} Nxh2 {[%emt 0:08:09]} 29. Kxh2 {[%emt 0:00:06]} Bg4 {[%emt 0:00:12]} 30. Qd2 {[%emt 0:11:24]} f5 {[%emt 0:00:37]} 31. Ng2 {[%emt 0:04:35]} f4 {[%emt 0:11:17]} 32. exf4 {[%emt 0:02:05]} Nxf4 {[%emt 0:00:05]} 33. Nce3 {[%emt 0:12:06]} Nh5 {[%emt 0:07:35]} 34. d5 {[%emt 0:01:04]} Qe5 {[%emt 0:02:04]} 35. Qc3 {[%emt 0:01:43]} Nxg3 {[%emt 0:00:36]} 36. fxg3 {[%emt 0:00:11]} Qh5+ {[%emt 0:00:37]} 37. Kg1 {[%emt 0:00:28]} Bf3 {[%emt 0:00:40]} 38. Qe1 {[%emt 0:03:26]} Rcf8 {[%emt 0:03:21]} 39. Rc2 {[%emt 0:00:37]} Qh3 {[%emt 0:02:10]} 0-1